[Event "Titled Tuesday Blitz May 9 Early 2023"]
[White "Degenbaev, Aziz"]
[Black "Yuan, Qingyu"]
[WhiteFideId "13802640"]
[BlackFideId "8609772"]
[WhiteElo "2152"]
[BlackElo "2359"]
[Result "0-1"]
[Round "11"]
[TimeControl "180+2"]
[Date "2023.05.09"]
[WhiteClock "0:00:03"]
[BlackClock "0:00:17"]

1. e4 {[%clk 0:03:00]}  c5 {[%clk 0:03:00]} 2. Nf3 {[%clk 0:03:00]}  d6 {[%clk 0:03:00]} 3. d4 {[%clk 0:03:01]}  cxd4 {[%clk 0:03:01]} 4. Nxd4 {[%clk 0:03:01]}  Nf6 {[%clk 0:03:02]} 5. Nc3 {[%clk 0:03:01]}  a6 {[%clk 0:03:02]} 6. h3 {[%clk 0:02:58]}  e5 {[%clk 0:02:59]} 7. Nde2 {[%clk 0:02:58]}  h5 {[%clk 0:02:58]} 8. g3 {[%clk 0:02:58]}  b5 {[%clk 0:02:56]} 9. Bg2 {[%clk 0:02:55]}  Bb7 {[%clk 0:02:56]} 10. O-O {[%clk 0:02:54]}  Nbd7 {[%clk 0:02:52]} 11. Bg5 {[%clk 0:02:50]}  Be7 {[%clk 0:02:52]} 12. f4 {[%clk 0:02:50]}  b4 {[%clk 0:02:46]} 13. Na4 {[%clk 0:02:18]}  Nxe4 {[%clk 0:02:34]} 14. Bxe7 {[%clk 0:02:11]}  Qxe7 {[%clk 0:02:33]} 15. fxe5 {[%clk 0:02:10]}  Qxe5 {[%clk 0:02:22]} 16. Nf4 {[%clk 0:02:02]}  O-O {[%clk 0:02:14]} 17. Qxh5 {[%clk 0:01:48]}  Bc6 {[%clk 0:01:45]} 18. Qxe5 {[%clk 0:01:30]}  Nxe5 {[%clk 0:01:43]} 19. Nb6 {[%clk 0:01:27]}  Rab8 {[%clk 0:01:34]} 20. Nbd5 {[%clk 0:01:17]}  Bxd5 {[%clk 0:01:28]} 21. Nxd5 {[%clk 0:01:16]}  Nxg3 {[%clk 0:01:28]} 22. Rfd1 {[%clk 0:01:05]}  Rfd8 {[%clk 0:01:07]} 23. Kf2 {[%clk 0:00:58]}  Nf5 {[%clk 0:01:06]} 24. Be4 {[%clk 0:00:57]}  Nh6 {[%clk 0:00:59]} 25. Rd4 {[%clk 0:00:55]}  a5 {[%clk 0:00:57]} 26. Rg1 {[%clk 0:00:51]}  Kf8 {[%clk 0:00:56]} 27. Ne3 {[%clk 0:00:43]}  g6 {[%clk 0:00:49]} 28. b3 {[%clk 0:00:37]}  Rb5 {[%clk 0:00:45]} 29. Ke2 {[%clk 0:00:27]}  Ng8 {[%clk 0:00:44]} 30. Rf1 {[%clk 0:00:26]}  Ne7 {[%clk 0:00:39]} 31. Rf6 {[%clk 0:00:24]}  Nc8 {[%clk 0:00:36]} 32. Nd5 {[%clk 0:00:20]}  Rc5 {[%clk 0:00:33]} 33. Kd2 {[%clk 0:00:19]}  Ne7 {[%clk 0:00:32]} 34. Nf4 {[%clk 0:00:17]}  Nc8 {[%clk 0:00:29]} 35. Ne6+ {[%clk 0:00:17]}  Ke7 {[%clk 0:00:29]} 36. Nxc5 {[%clk 0:00:10]}  Kxf6 {[%clk 0:00:28]} 37. Nb7 {[%clk 0:00:11]}  Rh8 {[%clk 0:00:26]} 38. Nxa5 {[%clk 0:00:11]}  Rxh3 {[%clk 0:00:26]} 39. Rxb4 {[%clk 0:00:12]}  Rh4 {[%clk 0:00:23]} 40. Kc1 {[%clk 0:00:08]}  g5 {[%clk 0:00:19]} 41. Rb8 {[%clk 0:00:05]}  Rxe4 {[%clk 0:00:19]} 42. Rxc8 {[%clk 0:00:05]}  Kg7 {[%clk 0:00:17]} 43. Nc4 {[%clk 0:00:04]}  g4 {[%clk 0:00:16]} 44. Nxe5 {[%clk 0:00:04]}  Rxe5 {[%clk 0:00:15]} 45. Rc3 {[%clk 0:00:04]}  f5 {[%clk 0:00:15]} 46. Rg3 {[%clk 0:00:03]}  Kg6 {[%clk 0:00:15]} 47. a4 {[%clk 0:00:04]}  Kg5 {[%clk 0:00:16]} 48. b4 {[%clk 0:00:05]}  f4 {[%clk 0:00:16]} 49. Rg1 {[%clk 0:00:05]}  f3 {[%clk 0:00:17]} 50. a5 {[%clk 0:00:05]}  f2 {[%clk 0:00:17]} 51. Rf1 {[%clk 0:00:05]}  Re1+ {[%clk 0:00:17]} 52. Kd2 {[%clk 0:00:04]}  Rxf1 {[%clk 0:00:18]} 53. a6 {[%clk 0:00:03]}  Ra1 {[%clk 0:00:17]} 0-1


[Site "https://www.chess.com"]

[Event "Titled Tuesday Blitz May 9 Early 2023"]
[White "feuervogel1000000"]
[Black "Prohaszka, Peter"]
[BlackFideId "726265"]
[WhiteElo "2488"]
[BlackElo "2626"]
[Result "1-0"]
[Round "11"]
[TimeControl "180+2"]
[Date "2023.05.09"]
[WhiteClock "0:00:10"]
[BlackClock "0:00:06"]

1. d4 {[%clk 0:02:59]}  d5 {[%clk 0:02:55]} 2. c4 {[%clk 0:02:59]}  e5 {[%clk 0:02:55]} 3. dxe5 {[%clk 0:02:57]}  Ne7 {[%clk 0:02:54]} 4. cxd5 {[%clk 0:02:57]}  Qxd5 {[%clk 0:02:54]} 5. Qxd5 {[%clk 0:02:55]}  Nxd5 {[%clk 0:02:54]} 6. a3 {[%clk 0:02:49]}  Nc6 {[%clk 0:02:53]} 7. Nf3 {[%clk 0:02:48]}  Bg4 {[%clk 0:02:45]} 8. Nc3 {[%clk 0:02:47]}  Nxc3 {[%clk 0:02:42]} 9. bxc3 {[%clk 0:02:48]}  Bxf3 {[%clk 0:02:39]} 10. gxf3 {[%clk 0:02:47]}  Nxe5 {[%clk 0:02:39]} 11. f4 {[%clk 0:02:45]}  Nc4 {[%clk 0:02:33]} 12. e3 {[%clk 0:02:44]}  Nd6 {[%clk 0:02:23]} 13. Bd3 {[%clk 0:02:37]}  g6 {[%clk 0:02:19]} 14. c4 {[%clk 0:02:37]}  Bg7 {[%clk 0:02:17]} 15. Rb1 {[%clk 0:02:37]}  c5 {[%clk 0:02:09]} 16. f3 {[%clk 0:02:14]}  O-O-O {[%clk 0:02:09]} 17. Be2 {[%clk 0:02:04]}  Nf5 {[%clk 0:01:52]} 18. Kf2 {[%clk 0:02:02]}  Bf6 {[%clk 0:01:52]} 19. Rb3 {[%clk 0:01:04]}  Rhe8 {[%clk 0:01:50]} 20. Bd3 {[%clk 0:01:00]}  Bh4+ {[%clk 0:01:44]} 21. Kg2 {[%clk 0:01:00]}  Kc7 {[%clk 0:01:02]} 22. Be4 {[%clk 0:00:52]}  b6 {[%clk 0:01:00]} 23. Bd5 {[%clk 0:00:51]}  Re7 {[%clk 0:00:51]} 24. a4 {[%clk 0:00:37]}  Rde8 {[%clk 0:00:50]} 25. e4 {[%clk 0:00:36]}  Nd4 {[%clk 0:00:50]} 26. Rd3 {[%clk 0:00:36]}  a5 {[%clk 0:00:33]} 27. Be3 {[%clk 0:00:29]}  Nc2 {[%clk 0:00:27]} 28. Bd2 {[%clk 0:00:28]}  Nb4 {[%clk 0:00:26]} 29. Rb3 {[%clk 0:00:19]}  Bf6 {[%clk 0:00:24]} 30. h4 {[%clk 0:00:17]}  Bd4 {[%clk 0:00:22]} 31. h5 {[%clk 0:00:17]}  Rg8 {[%clk 0:00:20]} 32. hxg6 {[%clk 0:00:14]}  Rxg6+ {[%clk 0:00:20]} 33. Kf1 {[%clk 0:00:14]}  f5 {[%clk 0:00:15]} 34. exf5 {[%clk 0:00:12]}  Rf6 {[%clk 0:00:14]} 35. Be4 {[%clk 0:00:11]}  h6 {[%clk 0:00:10]} 36. Be1 {[%clk 0:00:11]}  Ref7 {[%clk 0:00:09]} 37. Rh5 {[%clk 0:00:10]}  Rd6 {[%clk 0:00:07]} 38. Rb1 {[%clk 0:00:07]}  Bg7 {[%clk 0:00:07]} 39. Ke2 {[%clk 0:00:06]}  Re7 {[%clk 0:00:07]} 40. Bh4 {[%clk 0:00:05]}  Re8 {[%clk 0:00:07]} 41. Rg1 {[%clk 0:00:04]}  Bd4 {[%clk 0:00:06]} 42. Rg6 {[%clk 0:00:04]}  Rh8 {[%clk 0:00:06]} 43. f6 {[%clk 0:00:03]}  Rf8 {[%clk 0:00:05]} 44. Rhxh6 {[%clk 0:00:03]}  Nc6 {[%clk 0:00:05]} 45. Rg7+ {[%clk 0:00:04]}  Rd7 {[%clk 0:00:04]} 46. Rhh7 {[%clk 0:00:03]}  Nb8 {[%clk 0:00:02]} 47. Bf5 {[%clk 0:00:02]}  Bxf6 {[%clk 0:00:02]} 48. Rxd7+ {[%clk 0:00:02]}  Nxd7 {[%clk 0:00:01]} 49. Rxd7+ {[%clk 0:00:02]}  Kc6 {[%clk 0:00:02]} 50. Bxf6 {[%clk 0:00:03]}  Rxf6 {[%clk 0:00:03]} 51. Rd5 {[%clk 0:00:04]}  b5 {[%clk 0:00:01]} 52. Be4 {[%clk 0:00:05]}  Kb6 {[%clk 0:00:01]} 53. axb5 {[%clk 0:00:05]}  Re6 {[%clk 0:00:01]} 54. Rd7 {[%clk 0:00:06]}  Re7 {[%clk 0:00:01]} 55. Rxe7 {[%clk 0:00:06]}  a4 {[%clk 0:00:02]} 56. Rb7+ {[%clk 0:00:06]}  Ka5 {[%clk 0:00:02]} 57. Ra7+ {[%clk 0:00:07]}  Kb4 {[%clk 0:00:02]} 58. Rxa4+ {[%clk 0:00:08]}  Kc3 {[%clk 0:00:02]} 59. b6 {[%clk 0:00:09]}  Kd4 {[%clk 0:00:02]} 60. b7 {[%clk 0:00:09]}  Kc3 {[%clk 0:00:03]} 61. f5 {[%clk 0:00:09]}  Kd4 {[%clk 0:00:04]} 62. b8=Q {[%clk 0:00:09]}  Kc3 {[%clk 0:00:05]} 63. Ra3+ {[%clk 0:00:09]}  Kd4 {[%clk 0:00:06]} 64. Rd3+ {[%clk 0:00:09]}  Kxc4 {[%clk 0:00:06]} 65. Qb3# {[%clk 0:00:10]} 1-0


[Site "https://www.chess.com"]

[Event "Titled Tuesday Blitz May 9 Early 2023"]
[White "Goltsev, Dmitry"]
[Black "Pinto, Daniel"]
[WhiteFideId "24176710"]
[BlackFideId "3303144"]
[WhiteElo "2356"]
[BlackElo "2145"]
[Result "1-0"]
[Round "11"]
[TimeControl "180+2"]
[Date "2023.05.09"]
[WhiteClock "0:00:13"]
[BlackClock "0:00:00"]

1. e4 {[%clk 0:02:57]}  c6 {[%clk 0:02:52]} 2. d4 {[%clk 0:02:56]}  d5 {[%clk 0:02:52]} 3. Nc3 {[%clk 0:02:57]}  dxe4 {[%clk 0:02:52]} 4. Nxe4 {[%clk 0:02:58]}  Bf5 {[%clk 0:02:52]} 5. Ng3 {[%clk 0:02:57]}  Bg6 {[%clk 0:02:53]} 6. Nh3 {[%clk 0:02:58]}  e6 {[%clk 0:02:50]} 7. Nf4 {[%clk 0:02:57]}  Bd6 {[%clk 0:02:50]} 8. c3 {[%clk 0:02:57]}  Qc7 {[%clk 0:02:42]} 9. Qf3 {[%clk 0:02:57]}  Nd7 {[%clk 0:02:39]} 10. h4 {[%clk 0:02:57]}  e5 {[%clk 0:02:39]} 11. dxe5 {[%clk 0:02:54]}  Nxe5 {[%clk 0:02:39]} 12. Qe2 {[%clk 0:02:53]}  Ne7 {[%clk 0:01:39]} 13. h5 {[%clk 0:02:41]}  Bf5 {[%clk 0:01:39]} 14. Be3 {[%clk 0:02:35]}  Bg4 {[%clk 0:01:27]} 15. f3 {[%clk 0:02:21]}  Nxf3+ {[%clk 0:01:24]} 16. gxf3 {[%clk 0:02:11]}  Bxf4 {[%clk 0:01:24]} 17. O-O-O {[%clk 0:02:08]}  Be6 {[%clk 0:01:14]} 18. Ne4 {[%clk 0:02:00]}  Nd5 {[%clk 0:01:10]} 19. Bxf4 {[%clk 0:01:57]}  Qxf4+ {[%clk 0:01:11]} 20. Kb1 {[%clk 0:01:56]}  O-O-O {[%clk 0:01:07]} 21. Rg1 {[%clk 0:01:48]}  g6 {[%clk 0:01:00]} 22. Ka1 {[%clk 0:01:40]}  Rhe8 {[%clk 0:00:45]} 23. hxg6 {[%clk 0:01:38]}  hxg6 {[%clk 0:00:42]} 24. Qf2 {[%clk 0:01:32]}  Nxc3 {[%clk 0:00:16]} 25. Rxd8+ {[%clk 0:00:39]}  Rxd8 {[%clk 0:00:16]} 26. Nxc3 {[%clk 0:00:39]}  Rd1+ {[%clk 0:00:14]} 27. Nb1 {[%clk 0:00:40]}  Qc1 {[%clk 0:00:10]} 28. Bd3 {[%clk 0:00:38]}  Rxg1 {[%clk 0:00:09]} 29. Qxa7 {[%clk 0:00:35]}  Bf5 {[%clk 0:00:08]} 30. Qa8+ {[%clk 0:00:30]}  Kc7 {[%clk 0:00:08]} 31. Qa5+ {[%clk 0:00:30]}  Kd7 {[%clk 0:00:08]} 32. Bxf5+ {[%clk 0:00:31]}  gxf5 {[%clk 0:00:09]} 33. Qxf5+ {[%clk 0:00:31]}  Ke7 {[%clk 0:00:09]} 34. Qe5+ {[%clk 0:00:31]}  Kd7 {[%clk 0:00:10]} 35. Qf5+ {[%clk 0:00:29]}  Kd6 {[%clk 0:00:11]} 36. Qf6+ {[%clk 0:00:29]}  Kc5 {[%clk 0:00:07]} 37. Qe7+ {[%clk 0:00:28]}  Kd4 {[%clk 0:00:05]} 38. Qe4+ {[%clk 0:00:23]}  Kc5 {[%clk 0:00:05]} 39. Qe5+ {[%clk 0:00:18]}  Kb6 {[%clk 0:00:05]} 40. Qe4 {[%clk 0:00:16]}  Qc5 {[%clk 0:00:00]} 41. Qf4 {[%clk 0:00:13]} 1-0


[Site "https://www.chess.com"]

[Event "Titled Tuesday Blitz May 9 Early 2023"]
[White "Agibileg, Uurtsaikh"]
[Black "Djordjevic, Vuk"]
[WhiteFideId "4901606"]
[BlackFideId "902098"]
[WhiteElo "2353"]
[BlackElo "2452"]
[Result "1-0"]
[Round "11"]
[TimeControl "180+2"]
[Date "2023.05.09"]
[WhiteClock "0:01:22"]
[BlackClock "0:00:01"]

1. d4 {[%clk 0:03:00]}  Nf6 {[%clk 0:02:59]} 2. c4 {[%clk 0:02:59]}  e6 {[%clk 0:02:59]} 3. Nc3 {[%clk 0:02:59]}  Bb4 {[%clk 0:02:55]} 4. f3 {[%clk 0:02:59]}  d5 {[%clk 0:02:55]} 5. a3 {[%clk 0:03:00]}  Bxc3+ {[%clk 0:02:55]} 6. bxc3 {[%clk 0:03:00]}  O-O {[%clk 0:02:54]} 7. cxd5 {[%clk 0:03:01]}  exd5 {[%clk 0:02:54]} 8. e3 {[%clk 0:03:01]}  c5 {[%clk 0:02:55]} 9. Bd3 {[%clk 0:03:01]}  b6 {[%clk 0:02:55]} 10. Ne2 {[%clk 0:03:01]}  Ba6 {[%clk 0:02:55]} 11. O-O {[%clk 0:03:02]}  Re8 {[%clk 0:02:44]} 12. Ng3 {[%clk 0:03:01]}  h5 {[%clk 0:02:40]} 13. Ra2 {[%clk 0:03:00]}  Qc8 {[%clk 0:02:36]} 14. Re2 {[%clk 0:02:58]}  Nc6 {[%clk 0:02:28]} 15. Bb2 {[%clk 0:02:53]}  Bxd3 {[%clk 0:01:51]} 16. Qxd3 {[%clk 0:02:53]}  c4 {[%clk 0:01:51]} 17. Qc2 {[%clk 0:02:49]}  h4 {[%clk 0:01:51]} 18. Nf5 {[%clk 0:02:45]}  h3 {[%clk 0:01:31]} 19. Nd6 {[%clk 0:02:43]}  hxg2 {[%clk 0:01:31]} 20. Rxg2 {[%clk 0:02:41]}  Qe6 {[%clk 0:01:30]} 21. Nxe8 {[%clk 0:02:39]}  Qxe3+ {[%clk 0:01:30]} 22. Kh1 {[%clk 0:02:38]}  Rxe8 {[%clk 0:01:10]} 23. Qf5 {[%clk 0:02:24]}  Re6 {[%clk 0:01:00]} 24. Rfg1 {[%clk 0:02:16]}  g6 {[%clk 0:00:56]} 25. Bc1 {[%clk 0:02:12]}  Ne7 {[%clk 0:00:43]} 26. Rxg6+ {[%clk 0:01:45]}  Kf8 {[%clk 0:00:32]} 27. Qh3 {[%clk 0:01:23]}  Qxc1 {[%clk 0:00:05]} 28. Qh8+ {[%clk 0:01:20]}  Nfg8 {[%clk 0:00:02]} 29. Rxg8+ {[%clk 0:01:20]}  Nxg8 {[%clk 0:00:03]} 30. Qxg8+ {[%clk 0:01:21]}  Ke7 {[%clk 0:00:01]} 31. Rxc1 {[%clk 0:01:22]} 1-0


[Site "https://www.chess.com"]

[Event "Titled Tuesday Blitz May 9 Early 2023"]
[White "Csonka, Balazs"]
[Black "Skliarov, Viktor"]
[WhiteFideId "742910"]
[BlackFideId "14106736"]
[WhiteElo "2404"]
[BlackElo "2317"]
[Result "0-1"]
[Round "11"]
[TimeControl "180+2"]
[Date "2023.05.09"]
[WhiteClock "0:00:03"]
[BlackClock "0:00:20"]

1. e4 {[%clk 0:03:00]}  c5 {[%clk 0:03:00]} 2. Nf3 {[%clk 0:02:57]}  Nc6 {[%clk 0:02:59]} 3. Bb5 {[%clk 0:02:55]}  e6 {[%clk 0:02:59]} 4. O-O {[%clk 0:02:53]}  Nge7 {[%clk 0:02:59]} 5. d4 {[%clk 0:02:49]}  cxd4 {[%clk 0:02:59]} 6. Nxd4 {[%clk 0:02:50]}  Qb6 {[%clk 0:02:58]} 7. Nxc6 {[%clk 0:02:48]}  bxc6 {[%clk 0:02:56]} 8. Bd3 {[%clk 0:02:47]}  Ng6 {[%clk 0:02:50]} 9. c4 {[%clk 0:02:44]}  c5 {[%clk 0:02:48]} 10. Nc3 {[%clk 0:02:43]}  Bb7 {[%clk 0:02:48]} 11. f4 {[%clk 0:02:36]}  Be7 {[%clk 0:02:47]} 12. Qe2 {[%clk 0:02:35]}  O-O {[%clk 0:02:41]} 13. Be3 {[%clk 0:02:33]}  Qc6 {[%clk 0:02:32]} 14. Rad1 {[%clk 0:02:26]}  d6 {[%clk 0:02:28]} 15. Rf3 {[%clk 0:02:10]}  Bf6 {[%clk 0:02:20]} 16. Rh3 {[%clk 0:01:39]}  Bd4 {[%clk 0:01:24]} 17. Bxd4 {[%clk 0:01:20]}  Nxf4 {[%clk 0:01:22]} 18. Qg4 {[%clk 0:00:44]}  Nxh3+ {[%clk 0:01:20]} 19. Qxh3 {[%clk 0:00:45]}  cxd4 {[%clk 0:01:20]} 20. Nd5 {[%clk 0:00:46]}  Rfe8 {[%clk 0:00:53]} 21. e5 {[%clk 0:00:39]}  h6 {[%clk 0:00:43]} 22. Rf1 {[%clk 0:00:25]}  exd5 {[%clk 0:00:19]} 23. Qf5 {[%clk 0:00:18]}  dxc4 {[%clk 0:00:19]} 24. Qh7+ {[%clk 0:00:17]}  Kf8 {[%clk 0:00:19]} 25. Rxf7+ {[%clk 0:00:06]}  Kxf7 {[%clk 0:00:19]} 26. Bg6+ {[%clk 0:00:07]}  Ke7 {[%clk 0:00:20]} 27. Qxg7+ {[%clk 0:00:06]}  Kd8 {[%clk 0:00:20]} 28. Qf6+ {[%clk 0:00:03]}  Kc7 {[%clk 0:00:20]} 0-1


[Site "https://www.chess.com"]

[Event "Titled Tuesday Blitz May 9 Early 2023"]
[White "Lorenzo De La Riva, Lazaro"]
[Black "Rozman, Levy"]
[WhiteFideId "2268809"]
[BlackFideId "2039877"]
[WhiteElo "2294"]
[BlackElo "2376"]
[Result "0-1"]
[Round "11"]
[TimeControl "180+2"]
[Date "2023.05.09"]
[WhiteClock "0:00:02"]
[BlackClock "0:00:08"]

1. e4 {[%clk 0:03:00]}  e5 {[%clk 0:02:40]} 2. Nf3 {[%clk 0:02:59]}  Nc6 {[%clk 0:02:37]} 3. Bc4 {[%clk 0:02:53]}  f5 {[%clk 0:02:37]} 4. d4 {[%clk 0:02:52]}  fxe4 {[%clk 0:02:35]} 5. Nxe5 {[%clk 0:02:38]}  d5 {[%clk 0:02:21]} 6. Bb5 {[%clk 0:02:12]}  Qd6 {[%clk 0:02:18]} 7. O-O {[%clk 0:01:54]}  Nf6 {[%clk 0:02:15]} 8. f3 {[%clk 0:01:47]}  a6 {[%clk 0:02:02]} 9. Bxc6+ {[%clk 0:01:46]}  bxc6 {[%clk 0:02:01]} 10. fxe4 {[%clk 0:01:44]}  dxe4 {[%clk 0:02:00]} 11. Bg5 {[%clk 0:01:37]}  Be7 {[%clk 0:01:56]} 12. Nc3 {[%clk 0:01:23]}  O-O {[%clk 0:01:52]} 13. Bxf6 {[%clk 0:01:22]}  gxf6 {[%clk 0:01:50]} 14. Nc4 {[%clk 0:00:49]}  Qe6 {[%clk 0:01:44]} 15. Ne3 {[%clk 0:00:47]}  f5 {[%clk 0:01:40]} 16. g3 {[%clk 0:00:48]}  Bg5 {[%clk 0:01:39]} 17. Ng2 {[%clk 0:00:47]}  Rb8 {[%clk 0:01:38]} 18. b3 {[%clk 0:00:46]}  Rd8 {[%clk 0:01:34]} 19. Nf4 {[%clk 0:00:37]}  Qf6 {[%clk 0:01:31]} 20. Nce2 {[%clk 0:00:36]}  c5 {[%clk 0:01:31]} 21. c3 {[%clk 0:00:36]}  cxd4 {[%clk 0:01:31]} 22. cxd4 {[%clk 0:00:37]}  c5 {[%clk 0:01:32]} 23. d5 {[%clk 0:00:35]}  Qe5 {[%clk 0:01:29]} 24. Rc1 {[%clk 0:00:34]}  Be7 {[%clk 0:01:23]} 25. Qc2 {[%clk 0:00:23]}  Bd7 {[%clk 0:01:18]} 26. a4 {[%clk 0:00:19]}  Rb4 {[%clk 0:01:15]} 27. Rfd1 {[%clk 0:00:19]}  Bd6 {[%clk 0:01:13]} 28. Qc3 {[%clk 0:00:12]}  Rc8 {[%clk 0:01:07]} 29. Ne6 {[%clk 0:00:12]}  Bxe6 {[%clk 0:00:54]} 30. dxe6 {[%clk 0:00:11]}  Qxe6 {[%clk 0:00:50]} 31. Qd2 {[%clk 0:00:11]}  Be7 {[%clk 0:00:43]} 32. Nf4 {[%clk 0:00:11]}  Qf7 {[%clk 0:00:28]} 33. Qd7 {[%clk 0:00:11]}  Rbb8 {[%clk 0:00:26]} 34. Rd5 {[%clk 0:00:09]}  c4 {[%clk 0:00:24]} 35. bxc4 {[%clk 0:00:07]}  Bc5+ {[%clk 0:00:21]} 36. Kg2 {[%clk 0:00:07]}  Qxd7 {[%clk 0:00:19]} 37. Rxd7 {[%clk 0:00:08]}  Be3 {[%clk 0:00:17]} 38. Rf1 {[%clk 0:00:07]}  Rb2+ {[%clk 0:00:11]} 39. Kh3 {[%clk 0:00:06]}  Rc6 {[%clk 0:00:12]} 40. Nh5 {[%clk 0:00:05]}  Bf2 {[%clk 0:00:10]} 41. Rfd1 {[%clk 0:00:03]}  Rh6 {[%clk 0:00:09]} 42. Re7 {[%clk 0:00:03]}  Rxh5+ {[%clk 0:00:09]} 43. Kg2 {[%clk 0:00:04]}  Bc5+ {[%clk 0:00:09]} 44. Kf1 {[%clk 0:00:02]}  Bxe7 {[%clk 0:00:08]} 0-1


[Site "https://www.chess.com"]

[Event "Titled Tuesday Blitz May 9 Early 2023"]
[White "Wagner, Dennis"]
[Black "Manukyan, Sargis V."]
[WhiteFideId "24650684"]
[BlackFideId "13303465"]
[WhiteElo "2478"]
[BlackElo "2236"]
[Result "1-0"]
[Round "11"]
[TimeControl "180+2"]
[Date "2023.05.09"]
[WhiteClock "0:00:11"]
[BlackClock "0:00:00"]

1. d4 {[%clk 0:03:00]}  Nf6 {[%clk 0:02:58]} 2. Nf3 {[%clk 0:03:01]}  c5 {[%clk 0:02:56]} 3. d5 {[%clk 0:03:01]}  e6 {[%clk 0:02:53]} 4. Nc3 {[%clk 0:03:00]}  exd5 {[%clk 0:02:52]} 5. Nxd5 {[%clk 0:03:01]}  Nxd5 {[%clk 0:02:51]} 6. Qxd5 {[%clk 0:03:02]}  Be7 {[%clk 0:02:52]} 7. Ng5 {[%clk 0:02:49]}  O-O {[%clk 0:02:46]} 8. h4 {[%clk 0:02:45]}  Nc6 {[%clk 0:02:38]} 9. c3 {[%clk 0:02:36]}  d6 {[%clk 0:02:28]} 10. Bf4 {[%clk 0:02:35]}  h6 {[%clk 0:02:16]} 11. e3 {[%clk 0:02:28]}  hxg5 {[%clk 0:02:11]} 12. hxg5 {[%clk 0:02:29]}  g6 {[%clk 0:01:46]} 13. Bc4 {[%clk 0:01:48]}  Be6 {[%clk 0:01:41]} 14. Qf3 {[%clk 0:01:48]}  Kg7 {[%clk 0:01:06]} 15. O-O-O {[%clk 0:01:11]}  Bxc4 {[%clk 0:00:54]} 16. Rh7+ {[%clk 0:01:07]}  Kg8 {[%clk 0:00:26]} 17. Rdh1 {[%clk 0:01:02]}  f5 {[%clk 0:00:26]} 18. Qh3 {[%clk 0:00:34]}  Bxg5 {[%clk 0:00:16]} 19. Rg7+ {[%clk 0:00:12]}  Kxg7 {[%clk 0:00:16]} 20. Qh7+ {[%clk 0:00:13]}  Kf6 {[%clk 0:00:16]} 21. Bxg5+ {[%clk 0:00:13]}  Ke6 {[%clk 0:00:16]} 22. Bxd8 {[%clk 0:00:10]}  Raxd8 {[%clk 0:00:16]} 23. Qxg6+ {[%clk 0:00:08]}  Rf6 {[%clk 0:00:15]} 24. Qg7 {[%clk 0:00:06]}  Rd7 {[%clk 0:00:10]} 25. Qg8+ {[%clk 0:00:05]}  Rdf7 {[%clk 0:00:09]} 26. b3 {[%clk 0:00:05]}  Bd5 {[%clk 0:00:09]} 27. f3 {[%clk 0:00:06]}  Kd7 {[%clk 0:00:05]} 28. Rh8 {[%clk 0:00:04]}  Kc7 {[%clk 0:00:05]} 29. Qc8+ {[%clk 0:00:03]}  Kb6 {[%clk 0:00:05]} 30. Qg8 {[%clk 0:00:01]}  Be6 {[%clk 0:00:05]} 31. Qg3 {[%clk 0:00:02]}  f4 {[%clk 0:00:05]} 32. exf4 {[%clk 0:00:02]}  Rxf4 {[%clk 0:00:06]} 33. Qe1 {[%clk 0:00:02]}  Bd7 {[%clk 0:00:05]} 34. Rh6 {[%clk 0:00:03]}  Re7 {[%clk 0:00:05]} 35. Qd2 {[%clk 0:00:03]}  Rf5 {[%clk 0:00:01]} 36. Rxd6 {[%clk 0:00:04]}  Rfe5 {[%clk 0:00:01]} 37. Rxd7 {[%clk 0:00:03]}  Re1+ {[%clk 0:00:01]} 38. Kc2 {[%clk 0:00:03]}  R7e2 {[%clk 0:00:02]} 39. g4 {[%clk 0:00:03]}  Rxd2+ {[%clk 0:00:02]} 40. Rxd2 {[%clk 0:00:04]}  Rf1 {[%clk 0:00:03]} 41. Rd3 {[%clk 0:00:05]}  Ne5 {[%clk 0:00:02]} 42. Rd6+ {[%clk 0:00:05]}  Kc7 {[%clk 0:00:03]} 43. Rd5 {[%clk 0:00:06]}  Nxf3 {[%clk 0:00:03]} 44. Rxc5+ {[%clk 0:00:06]}  Kb6 {[%clk 0:00:03]} 45. Rf5 {[%clk 0:00:06]}  Nh2 {[%clk 0:00:03]} 46. Rxf1 {[%clk 0:00:06]}  Nxf1 {[%clk 0:00:04]} 47. g5 {[%clk 0:00:07]}  Ne3+ {[%clk 0:00:04]} 48. Kd3 {[%clk 0:00:07]}  Nf5 {[%clk 0:00:04]} 49. g6 {[%clk 0:00:07]}  Kc6 {[%clk 0:00:04]} 50. Ke4 {[%clk 0:00:07]}  Ng7 {[%clk 0:00:04]} 51. Ke5 {[%clk 0:00:08]}  Kc5 {[%clk 0:00:03]} 52. Kf6 {[%clk 0:00:08]}  Nh5+ {[%clk 0:00:03]} 53. Kf7 {[%clk 0:00:08]}  b5 {[%clk 0:00:03]} 54. g7 {[%clk 0:00:08]}  Nxg7 {[%clk 0:00:03]} 55. Kxg7 {[%clk 0:00:08]}  b4 {[%clk 0:00:03]} 56. c4 {[%clk 0:00:08]}  a5 {[%clk 0:00:02]} 57. Kf6 {[%clk 0:00:09]}  a4 {[%clk 0:00:03]} 58. Ke5 {[%clk 0:00:10]}  a3 {[%clk 0:00:03]} 59. Ke4 {[%clk 0:00:09]}  Kc6 {[%clk 0:00:03]} 60. Kd4 {[%clk 0:00:10]}  Kd6 {[%clk 0:00:03]} 61. c5+ {[%clk 0:00:10]}  Kc6 {[%clk 0:00:00]} 62. Kc4 {[%clk 0:00:11]} 1-0


[Site "https://www.chess.com"]